[Event "Moscow Youth U19 2019"]
[Site "Moscow"]
[Date "2019.11.25"]
[Round "8.7"]
[White "Zavialov, Nikita A."]
[Black "Sekoyan, Vachagan"]
[Result "1/2-1/2"]
[ECO "B10"]
[WhiteElo "2066"]
[BlackElo "2084"]
[Annotator "NA RC"]
[PlyCount "102"]
[EventDate "2019.11.18"]
[EventType "swiss"]
[EventCountry "RUS"]
[SourceTitle "playchess.com"]
[Source "ChessBase"]
[SourceQuality "1"]
[TimeControl "5400+30"]

1. e4 {[%emt 0:01:59]} g6 {[%emt 0:00:00]} 2. d4 {[%emt 0:00:19]} Bg7 {[%emt 0:00:00]} 3. Nf3 {[%emt 0:00:10]} c5 {[%emt 0:00:00]} 4. c3 {[%emt 0:05:06]} cxd4 {[%emt 0:00:06]} 5. cxd4 {[%emt 0:00:13]} d5 {[%emt 0:02:06]} 6. exd5 {[%emt 0:20:09]} Nf6 {[%emt 0:00:59]} 7. Bb5+ {[%emt 0:00:49]} Nbd7 {[%emt 0:01:22]} 8. Nc3 {[%emt 0:03:01]} O-O {[%emt 0:01:24]} 9. Bxd7 {[%emt 0:08:40]} Bxd7 {[%emt 0:07:56]} 10. O-O {[%emt 0:11:49]} Bf5 {[%emt 0:06:05] B10: Caro-Kann: 2 d3 and 2 c4} (10... b5 11. a3 a5 12. Qb3 Rb8 13. Bf4 Rb6 14. Ne5 b4 15. Nc4 Rb7 16. axb4 Rxb4 17. Qa2 a4 18. Be5 {0-1 (54) Senador,E (2325)-Deepan Chakkravarthy,J (2479) Olongapo City 2015}) 11. Qb3 {[%emt 0:06:45]} Qc7 $146 {[%emt 0:03:57]} ({Predecessor:} 11... b6 12. Ne5 Kh8 13. Re1 Qd6 14. Bf4 Qd8 15. Nc6 Qc8 16. Rxe7 Qa6 17. Ne5 Kg8 18. Nb5 {1-0 (45) Kovalenko,O (2169)-Kovalev,E Kiev 2003}) 12. Bg5 {[%emt 0:06:57]} Bd3 {[%emt 0:15:41]} 13. Rfc1 {[%emt 0:08:13]} Bf5 {[%emt 0:10:36]} 14. Ne5 {[%emt 0:12:07]} Rad8 {[%emt 0:06:57]} 15. Bxf6 {[%emt 0:03:17]} (15. a4 $16) 15... Bxf6 {[%emt 0:02:47]} (15... exf6 $11 {remains equal.} 16. Nc4 Qf4) 16. f4 {[%emt 0:02:13]} Bg7 {[%emt 0:09:17]} 17. a4 {[%emt 0:01:55]} Qb6 {[%emt 0:07:17]} 18. Qxb6 {[%emt 0:00:21]} axb6 {[%emt 0:00:01]} 19. a5 {[%emt 0:01:36]} b5 {[%emt 0:00:26]} 20. Nxb5 {[%emt 0:01:14]} Rxd5 {[%emt 0:00:24]} 21. Rc5 {[%emt 0:00:29]} Rfd8 {[%emt 0:01:31]} 22. a6 {[%emt 0:01:55]} bxa6 {[%emt 0:01:12]} 23. Nc7 {[%emt 0:01:31]} Rxd4 {[%emt 0:01:56]} 24. Nc6 {[%emt 0:00:41]} Rd1+ {[%emt 0:07:19]} 25. Rxd1 {[%emt 0:00:03]} Rxd1+ {[%emt 0:00:03]} 26. Kf2 {[%emt 0:00:03]} Rd7 {[%emt 0:03:51]} 27. Nxa6 {[%emt 0:00:47]} Bxb2 {[%emt 0:01:26]} 28. Rb5 {[%emt 0:00:54]} Bf6 {[%emt 0:01:01]} 29. Ne5 {[%emt 0:00:35]} Rd4 {[%emt 0:01:50]} 30. Ke3 {[%emt 0:00:34]} Ra4 {[%emt 0:01:24]} 31. Nc5 {[%emt 0:00:25]} Ra3+ {[%emt 0:01:08]} 32. Rb3 {[%emt 0:00:35]} Ra2 {[%emt 0:01:38]} 33. Kf3 {[%emt 0:00:26]} Bc2 {[%emt 0:01:28]} 34. Rb8+ {[%emt 0:00:27]} Kg7 {[%emt 0:00:05]} 35. Ncd7 {[%emt 0:00:37]} Bd1+ {[%emt 0:01:08]} 36. Kg3 {[%emt 0:00:07]} Ra3+ {[%emt 0:00:56]} 37. Kf2 {[%emt 0:00:05]} Bh4+ {[%emt 0:00:22]} 38. g3 {[%emt 0:00:38]} Bf6 {[%emt 0:00:04]} 39. Rb2 {[%emt 0:01:00]} Ba4 {[%emt 0:03:47]} 40. Nxf6 {[%emt 0:00:39]} exf6 {[%emt 0:00:00]} 41. Nc4 {[%emt 0:00:31]} Rc3 {[%emt 0:00:00]} 42. Ne3 {[%emt 0:00:31]} Bc6 {[%emt 0:00:00]} 43. Rc2 {[%emt 0:00:17]} Rxc2+ {[%emt 0:00:00]} 44. Nxc2 {[%emt 0:00:02]} Kf8 {[%emt 0:00:00]} 45. Ne3 {[%emt 0:01:13]} Ke7 {[%emt 0:00:00]} 46. Ng4 {[%emt 0:00:24]} Ke6 {[%emt 0:00:28]} 47. Ke3 {[%emt 0:00:24]} g5 {[%emt 0:01:32]} ({Better is} 47... h5 $17 48. Nf2 Kf5) 48. Nh6 {[%emt 0:00:36]} Bd5 {[%emt 0:00:44]} 49. Ng4 {[%emt 0:00:35]} f5 {[%emt 0:00:23]} (49... h5 $5 {[%cal Rh5g4]} 50. Nf2 Kf5 $17) 50. Nf2 {[%emt 0:00:21]} g4 {[%emt 0:00:27]} 51. Nd3 {[%emt 0:00:40]} f6 $11 {[%emt 0:02:26] Ke4} 1/2-1/2

[Event "Moscow Youth U19 2019"]
[Site "Moscow"]
[Date "2019.11.25"]
[Round "8.8"]
[White "Kozhukhov, Alexandr"]
[Black "Talyzin, Valeriy"]
[Result "*"]
[ECO "E62"]
[WhiteElo "1627"]
[BlackElo "1829"]
[Annotator "NA RC"]
[PlyCount "81"]
[EventDate "2019.11.18"]
[EventType "swiss"]
[EventCountry "RUS"]
[SourceTitle "playchess.com"]
[Source "ChessBase"]
[SourceQuality "1"]
[TimeControl "5400+30"]

1. d4 {[%emt 0:05:30]} Nf6 {[%emt 0:00:00]} 2. c4 {[%emt 0:00:09]} g6 {[%emt 0:00:00]} 3. Nf3 {[%emt 0:00:05]} Bg7 {[%emt 0:00:00]} 4. g3 {[%emt 0:00:12]} O-O {[%emt 0:00:00]} 5. Bg2 {[%emt 0:00:06]} d6 {[%emt 0:00:00]} 6. O-O {[%emt 0:00:11]} Nc6 {[%emt 0:00:00]} 7. Nc3 {[%emt 0:00:28]} Bf5 {[%emt 0:00:00]} 8. Re1 {[%emt 0:01:55]} Ne4 {[%emt 1:34:00]} 9. Nxe4 {[%emt 0:04:47]} Bxe4 {[%emt 0:00:04]} 10. e3 {[%emt 0:00:23] E62: King's Indian: Fianchetto: 6...c6 and Panno Variation (6...Nc6) without ...a6} Nb4 {[%emt 0:11:35]} (10... d5 11. b3 e5 12. Ba3 Re8 13. dxe5 dxc4 14. bxc4 Nxe5 15. Nxe5 Bxe5 16. Qxd8 Raxd8 17. Rad1 Bc3 18. Rxd8 Rxd8 {1-0 (54) Romanchuk,V (2305)-Vovk,Y (2575) Alushta 2009}) 11. Re2 {[%emt 0:06:20]} Bd3 $146 {[%emt 0:08:55]} ({Predecessor:} 11... c5 12. a3 Nc6 13. Rd2 Qb6 14. d5 Na5 15. Re2 Nxc4 16. Nd2 Bd3 17. Nxc4 Bxc4 {1-0 (42) Schmalzried,V (1858)-Koetz,A (1997) Berlin 2017}) 12. Rd2 {[%emt 0:00:49]} Bxc4 {[%emt 0:00:08]} 13. Qa4 {[%emt 0:01:03]} a5 {[%emt 0:00:08]} 14. a3 {[%emt 0:03:25]} b5 {[%emt 0:00:08]} 15. Qd1 {[%emt 1:12:07]} Na6 {[%emt 0:02:34]} 16. Ng5 {[%emt 0:02:53]} Rb8 {[%emt 0:01:23]} 17. b3 {[%emt 0:03:24]} Be6 {[%emt 0:06:18]} 18. Nxe6 {[%emt 0:00:05]} fxe6 {[%emt 0:00:08]} 19. Bb2 {[%emt 0:03:39]} c5 {[%emt 0:08:26]} 20. Bh3 {[%emt 0:18:56]} Nc7 {[%emt 0:25:52]} 21. dxc5 {[%emt 0:00:33]} Bxb2 {[%emt 0:02:04]} 22. Rxb2 {[%emt 0:00:10]} dxc5 {[%emt 0:00:28]} 23. Qxd8 {[%emt 0:00:50]} Rfxd8 {[%emt 0:00:07]} 24. Rc1 {[%emt 0:00:04]} Rb6 {[%emt 0:04:52]} 25. Rxc5 {[%emt 0:01:42]} Rd1+ {[%emt 0:00:04]} 26. Bf1 {[%emt 0:00:55]} Nd5 {[%emt 0:00:35]} 27. Kg2 {[%emt 0:00:56]} Ra1 $1 {[%emt 0:01:34]} 28. Rxb5 {[%emt 0:08:30]} Rxb5 {[%emt 0:28:33]} 29. Bxb5 {[%emt 0:00:07]} Rxa3 {[%emt 0:00:00]} 30. Bc4 {[%emt 0:02:26]} Kf7 {[%emt 0:00:00]} 31. Bxd5 {[%emt 0:05:06]} exd5 $11 {[%emt 0:00:00]} 32. b4 {[%emt 0:00:06]} a4 {[%emt 0:00:00]} 33. b5 {[%emt 0:00:03]} Rb3 {[%emt 0:00:00]} 34. Ra2 {[%emt 0:00:04]} a3 {[%emt 0:00:00]} 35. b6 {[%emt 0:00:04]} e5 {[%emt 0:00:00]} 36. b7 {[%emt 0:00:05]} Kf6 {[%emt 0:00:00]} 37. Rxa3 {[%emt 0:00:27]} Rxb7 {[%emt 0:00:00]} 38. Ra5 {[%emt 0:00:11]} Rd7 {[%emt 0:00:00]} 39. Kf3 {[%emt 0:00:20]} h5 {[%emt 0:00:00]} 40. h3 {[%emt 0:00:50]} Rd6 {[%emt 0:00:00]} 41. Rb5 {[%emt 0:01:02]} *

[Event "Moscow Youth U19 2019"]
[Site "Moscow"]
[Date "2019.11.25"]
[Round "8.10"]
[White "Nikolaev, Daniil"]
[Black "Talalov, Anton"]
[Result "1/2-1/2"]
[ECO "C68"]
[WhiteElo "1867"]
[BlackElo "1792"]
[Annotator "NA RC"]
[PlyCount "84"]
[EventDate "2019.11.18"]
[EventType "swiss"]
[EventCountry "RUS"]
[SourceTitle "playchess.com"]
[Source "ChessBase"]
[SourceQuality "1"]
[TimeControl "5400+30"]

1. e4 {[%emt 0:00:00]} e5 {[%emt 0:05:00]} 2. Nf3 {[%emt 0:00:00]} Nc6 {[%emt 0:00:26]} 3. Bb5 {[%emt 0:00:00]} a6 {[%emt 0:00:05]} 4. Bxc6 {[%emt 0:00:00]} dxc6 {[%emt 0:00:09]} 5. O-O {[%emt 0:00:00]} Bd6 {[%emt 0:00:32]} 6. d4 {[%emt 0:00:02]} exd4 {[%emt 0:00:09]} 7. Qxd4 {[%emt 0:00:51]} f6 {[%emt 0:00:05]} 8. Be3 {[%emt 0:00:14]} Be6 {[%emt 0:02:24]} 9. Nbd2 {[%emt 0:01:05]} Ne7 {[%emt 0:00:11]} 10. Qc3 {[%emt 0:01:39] C68: Ruy Lopez: Exchange Variation, sidelines} (10. Rad1 Ng6 11. Nc4 Bxc4 12. Qxc4 Qe7 13. c3 O-O-O 14. b4 Rhe8 15. Rd4 Qe6 16. Qxe6+ Rxe6 17. Nd2 Ne5 18. f3 {1-0 (59) Novikov,S (2540)-Tomashevsky,E (2705) St Petersburg 2018}) 10... O-O {[%emt 0:02:29]} 11. Rad1 {[%emt 0:07:33]} b6 {[%emt 0:15:36]} 12. Nc4 {[%emt 0:09:57]} c5 {[%emt 0:06:20]} 13. Bf4 {[%emt 0:07:45]} Nc8 {[%emt 0:05:13]} 14. e5 {[%emt 0:06:58]} fxe5 {[%emt 0:00:09]} 15. Bxe5 {[%emt 0:01:40]} Qe7 {[%emt 0:00:49]} 16. Rfe1 {[%emt 0:07:29]} Bxe5 {[%emt 0:04:56]} 17. Qxe5 $146 {[%emt 0:07:36]} ({Predecessor:} 17. Rxe5) 17... Bxc4 {[%emt 0:01:50]} 18. Qxe7 {[%emt 0:00:10]} Nxe7 {[%emt 0:00:05]} 19. Rxe7 {[%emt 0:00:03]} Rf7 {[%emt 0:00:24]} 20. Re3 {[%emt 0:15:16]} Bb5 {[%emt 0:07:36]} 21. Ne5 {[%emt 0:04:14]} Rf4 {[%emt 0:07:13]} 22. c3 {[%emt 0:07:45]} Kf8 {[%emt 0:23:00]} 23. g3 {[%emt 0:00:46]} Rf6 {[%emt 0:00:10]} 24. Nd7+ {[%emt 0:01:32]} Bxd7 {[%emt 0:00:07]} 25. Rxd7 {[%emt 0:00:03]} Rf7 {[%emt 0:00:28]} 26. Red3 {[%emt 0:04:57]} Re8 {[%emt 0:01:10]} 27. Kf1 {[%emt 0:07:41]} Rfe7 {[%emt 0:01:24]} 28. Rxe7 {[%emt 0:01:13]} Rxe7 {[%emt 0:00:10]} 29. f4 {[%emt 0:00:21]} Kf7 {[%emt 0:00:25]} 30. Kf2 {[%emt 0:00:11]} g6 {[%emt 0:00:30]} 31. Kf3 {[%emt 0:02:17]} h5 {[%emt 0:00:56]} 32. h3 {[%emt 0:01:23]} Kf6 {[%emt 0:00:53]} 33. g4 {[%emt 0:00:19]} hxg4+ {[%emt 0:01:04]} 34. hxg4 {[%emt 0:00:05]} Rh7 {[%emt 0:01:23]} (34... g5 $1 $11 {remains equal.}) 35. Rd2 {[%emt 0:00:42]} Rh3+ {[%emt 0:00:50]} 36. Kg2 {[%emt 0:00:56]} Re3 {[%emt 0:00:14]} 37. Kf2 {[%emt 0:00:06]} Rh3 {[%emt 0:00:11]} 38. Re2 $11 {[%emt 0:00:10]} Rd3 {[%emt 0:01:31]} 39. Re3 {[%emt 0:00:19]} Rd2+ {[%emt 0:00:07]} 40. Re2 {[%emt 0:00:04]} Rd3 {[%emt 0:00:05]} 41. Re3 {[%emt 0:01:56]} Rd2+ {[%emt 0:00:08]} 42. Re2 {[%emt 0:00:18]} Rd3 {[%emt 0:00:38]} 1/2-1/2

[Event "Moscow Youth U19 2019"]
[Site "Moscow"]
[Date "2019.11.26"]
[Round "9.6"]
[White "Orlov, Aleksandr"]
[Black "Shlykov, Yaroslav"]
[Result "1-0"]
[ECO "E90"]
[WhiteElo "1965"]
[BlackElo "1623"]
[Annotator "NA RC"]
[PlyCount "119"]
[EventDate "2019.11.18"]
[EventType "swiss"]
[EventCountry "RUS"]
[SourceTitle "playchess.com"]
[Source "ChessBase"]
[SourceQuality "1"]
[TimeControl "5400+30"]

1. d4 {[%emt 0:00:00]} Nf6 {[%emt 0:00:00]} 2. c4 {[%emt 0:00:00]} g6 {[%emt 0:00:00]} 3. Nc3 {[%emt 0:00:00]} Bg7 {[%emt 0:00:00]} 4. e4 {[%emt 0:00:02]} d6 {[%emt 0:00:00]} 5. Nf3 {[%emt 0:00:27]} O-O {[%emt 0:00:00]} 6. h3 {[%emt 0:00:06]} e5 {[%emt 0:00:00]} 7. Be3 {[%emt 0:00:07]} exd4 {[%emt 0:00:12]} 8. Nxd4 {[%emt 0:00:07]} Nc6 {[%emt 0:00:04] E90: King's Indian: Classical: Early deviations and 6 h3} 9. Nxc6 {[%emt 0:01:17]} (9. Bd3 Re8 10. O-O Ne5 11. Re1 Nxd3 12. Qxd3 Bd7 {½-½ (31) Schlosser,P (2539)-Tregubov,P (2593) Drancy 2016}) 9... bxc6 {[%emt 0:00:05]} 10. Bd3 {[%emt 0:00:10]} d5 $146 {[%emt 0:00:57]} ({Predecessor:} 10... Nd7 11. O-O Ne5 12. Qd2 Bxh3 {0-1 (25) Vardanian,H (2117)-Nuri,M (2201) Poti 2013}) 11. exd5 {[%emt 0:09:30]} cxd5 {[%emt 0:00:05]} 12. Be2 {[%emt 0:00:48]} Be6 {[%emt 0:03:57]} 13. Bf3 {[%emt 0:04:13]} c6 {[%emt 0:00:49]} 14. Bc5 {[%emt 0:11:51]} Re8 {[%emt 0:01:29]} (14... d4 $5 {[%cal Rd4c3]} 15. Bxf8 (15. Bxd4 Bxc4 16. Rc1 Rc8 $17) (15. Qxd4 Nd7 $17) 15... Bxf8 $17) 15. O-O {[%emt 0:00:08]} Nd7 {[%emt 0:05:21]} 16. cxd5 {[%emt 0:04:46]} Nxc5 {[%emt 0:00:35]} 17. dxe6 {[%emt 0:00:06]} Rxe6 {[%emt 0:00:04]} 18. Qc2 {[%emt 0:03:42]} Qd3 {[%emt 0:02:41]} 19. Rac1 {[%emt 0:02:06]} Qxc2 {[%emt 0:02:09]} 20. Rxc2 {[%emt 0:00:14]} Nd3 {[%emt 0:00:14]} 21. Rd1 {[%emt 0:14:22]} Ne5 {[%emt 0:04:55]} 22. Be2 {[%emt 0:00:40]} Bh6 {[%emt 0:21:40]} 23. g3 {[%emt 0:02:40]} g5 {[%emt 0:01:20]} 24. Ne4 {[%emt 0:10:27]} Rb8 {[%emt 0:02:47]} 25. b3 {[%emt 0:02:49]} f5 {[%emt 0:11:59]} 26. Nc5 {[%emt 0:06:08]} Re7 {[%emt 0:01:22]} 27. Rd6 {[%emt 0:05:52]} Bf8 {[%emt 0:01:45]} 28. Re6 {[%emt 0:01:00]} (28. Kg2 $16) 28... Rbe8 {[%emt 0:01:10]} (28... Rd8 $11) 29. Rxe7 {[%emt 0:02:45]} Rxe7 {[%emt 0:00:27]} 30. Nd3 {[%emt 0:01:19]} Ng6 {[%emt 0:01:35]} 31. Kf1 {[%emt 0:01:26]} Re6 {[%emt 0:02:10]} 32. Nc5 {[%emt 0:01:04]} Rd6 {[%emt 0:00:38]} 33. Bc4+ {[%emt 0:00:20]} Kg7 {[%emt 0:00:20]} 34. Ne6+ {[%emt 0:01:04]} Kf6 {[%emt 0:00:20]} 35. Nxf8 {[%emt 0:01:58]} Nxf8 {[%emt 0:00:05]} 36. Re2 {[%emt 0:00:26]} Ne6 {[%emt 0:00:28]} 37. Bxe6 {[%emt 0:00:13]} Rxe6 {[%emt 0:00:04]} 38. Rd2 {[%emt 0:00:18]} h5 {[%emt 0:01:33]} 39. Rd4 {[%emt 0:01:22]} g4 {[%emt 0:01:41]} 40. h4 {[%emt 0:00:57]} c5 {[%emt 0:10:44]} 41. Rc4 {[%emt 0:01:52]} Ra6 $1 {[%emt 0:00:45]} 42. a4 {[%emt 0:01:27]} Ra5 $2 {[%emt 0:01:07] [#]} (42... Rb6 $11 {and Black is okay.}) 43. Ke2 $1 {[%emt 0:00:11]} Ke5 $18 {[%emt 0:00:12]} 44. Kd3 $2 {[%emt 0:00:17]} ({Only move:} 44. Ke3 $18) 44... Kd5 {[%emt 0:00:16]} 45. Rf4 {[%emt 0:01:46]} Ke6 {[%emt 0:01:01]} 46. Kc4 {[%emt 0:00:37]} Ke5 {[%emt 0:00:05]} 47. f3 {[%emt 0:00:39]} Ra6 {[%emt 0:02:41]} 48. fxg4 {[%emt 0:00:13]} hxg4 {[%emt 0:00:07]} 49. Kxc5 {[%emt 0:00:08]} Rh6 {[%emt 0:00:16]} 50. Rf1 {[%emt 0:00:24]} Ke4 {[%emt 0:01:12]} 51. Rf4+ $2 {[%emt 0:00:17]} Ke5 {[%emt 0:00:05]} 52. Rf1 {[%emt 0:00:03]} Ke4 {[%emt 0:00:04]} 53. b4 $18 {[%emt 0:04:20]} Rh5 {[%emt 0:03:12]} 54. Kc6 {[%emt 0:00:09]} Rh6+ {[%emt 0:00:10]} 55. Kb7 {[%emt 0:00:16]} Rh7+ {[%emt 0:01:10]} 56. Ka6 {[%emt 0:00:13]} Ke5 {[%emt 0:01:45]} 57. b5 {[%emt 0:00:10]} Rxh4 {[%emt 0:18:37]} 58. gxh4 {[%emt 0:00:07]} g3 {[%emt 0:00:00]} 59. h5 {[%emt 0:00:08]} Kf6 {[%emt 0:00:00]} 60. Rf3 {[%emt 0:00:59]} 1-0

[Event "Moscow Youth U19 2019"]
[Site "Moscow"]
[Date "2019.11.26"]
[Round "9.7"]
[White "Nikolaev, Daniil"]
[Black "Zavialov, Nikita A."]
[Result "0-1"]
[ECO "B33"]
[WhiteElo "1867"]
[BlackElo "2066"]
[Annotator "NA RC"]
[PlyCount "92"]
[EventDate "2019.11.18"]
[EventType "swiss"]
[EventCountry "RUS"]
[SourceTitle "playchess.com"]
[Source "ChessBase"]
[SourceQuality "1"]
[TimeControl "5400+30"]

1. e4 {[%emt 0:00:00]} c5 {[%emt 0:00:00]} 2. Nf3 {[%emt 0:00:00]} Nc6 {[%emt 0:00:00]} 3. d4 {[%emt 0:00:00]} cxd4 {[%emt 0:00:00]} 4. Nxd4 {[%emt 0:00:00]} e5 {[%emt 0:00:00]} 5. Nb5 {[%emt 0:00:00]} d6 {[%emt 0:00:00]} 6. a4 {[%emt 0:00:01]} Be7 {[%emt 0:02:02]} 7. N1c3 {[%emt 0:00:20]} a6 {[%emt 0:12:18]} 8. Na3 {[%emt 0:00:10]} Be6 {[%emt 0:02:38]} 9. Bc4 {[%emt 0:01:26]} Nf6 {[%emt 0:00:43]} 10. O-O {[%emt 0:01:54]} O-O {[%emt 0:16:45]} 11. Re1 {[%emt 0:22:23]} Rb8 {[%emt 0:09:39] B33: Sicilian: Pelikan and Sveshnikov Variations} (11... Rc8 12. Nd5 Nb4 13. Nxf6+ Bxf6 14. Bxe6 fxe6 15. c3 Nc6 16. Qb3 Qe7 17. Be3 Qf7 18. Rad1 Rcd8 19. f3 {½-½ (61) Hoyos Millan,L (2556)-De Oliveira,M (2543) ICCF email 2008}) 12. Nd5 $146 {[%emt 0:02:51]} ({Predecessor:} 12. Bg5 Ne8 13. Bxe7 Nxe7 14. Nd5 Ng6 15. c3 Qg5 16. Qc1 Qh4 17. g3 Qd8 18. Qd2 Kh8 19. Rad1 Bxd5 20. Bxd5 {½-½ (79) Babula,M (2204)-Rubes,J (2345) Ostrava 2019}) 12... Bxd5 {[%emt 0:02:02]} 13. exd5 {[%emt 0:00:56]} Nd4 {[%emt 0:06:06]} 14. c3 {[%emt 0:03:20]} Nf5 {[%emt 0:01:53]} 15. Bd3 {[%emt 0:09:56]} Nh4 {[%emt 0:00:59]} 16. g3 {[%emt 0:00:41]} Ng6 {[%emt 0:00:24]} 17. c4 {[%emt 0:02:43]} Nd7 {[%emt 0:02:54]} 18. Bf5 {[%emt 0:00:51]} Nh8 {[%emt 0:10:23]} 19. b4 {[%emt 0:38:00]} g6 {[%emt 0:01:37]} 20. Bxd7 {[%emt 0:00:53]} Qxd7 {[%emt 0:00:08]} 21. Kg2 {[%emt 0:02:15]} f5 {[%emt 0:01:09]} 22. f3 {[%emt 0:02:12]} Bf6 {[%emt 0:13:36]} 23. Ra2 {[%emt 0:02:45]} Nf7 {[%emt 0:02:32]} 24. c5 {[%emt 0:03:39]} (24. Qb3 $11 {remains equal.}) 24... Rbc8 {[%emt 0:00:54] [#]} (24... dxc5 $15 25. bxc5 Rfd8) 25. Be3 $2 {[%emt 0:00:54]} (25. Nc4 $1 $16) 25... f4 {[%emt 0:08:11]} 26. Bf2 {[%emt 0:00:13]} Ng5 {[%emt 0:01:09]} 27. g4 {[%emt 0:00:17]} e4 {[%emt 0:00:43]} 28. Rxe4 {[%emt 0:00:21]} Nxe4 {[%emt 0:00:13]} 29. fxe4 {[%emt 0:00:03]} f3+ {[%emt 0:01:45]} 30. Qxf3 {[%emt 0:00:45]} Bh4 {[%emt 0:00:42]} 31. Qd1 {[%emt 0:00:42]} Bxf2 {[%emt 0:00:20]} 32. Rxf2 {[%emt 0:00:04]} Rxf2+ {[%emt 0:00:11]} 33. Kxf2 {[%emt 0:00:04]} dxc5 {[%emt 0:00:03]} 34. bxc5 {[%emt 0:01:16]} Rxc5 {[%emt 0:00:44]} 35. Qd4 {[%emt 0:00:39]} Qd6 $2 {[%emt 0:01:04]} (35... Rc1 $19 {is more deadly.} 36. e5 Qf7+ 37. Kg3 Qc7) 36. Kg2 {[%emt 0:00:32]} Rc1 {[%emt 0:01:39]} 37. Qe3 {[%emt 0:01:45]} Qc5 {[%emt 0:00:48]} 38. Qxc5 {[%emt 0:02:53]} Rxc5 $19 {[%emt 0:00:05]} 39. Nb1 {[%emt 0:01:06]} Rc1 {[%emt 0:00:29]} 40. Na3 {[%emt 0:00:15]} Rc3 {[%emt 0:00:06]} 41. Nb1 {[%emt 0:00:06]} Rb3 {[%emt 0:00:04]} 42. Nd2 {[%emt 0:00:29]} Rb2 {[%emt 0:00:04]} 43. Kf3 {[%emt 0:00:04]} Rxd2 {[%emt 0:00:06]} 44. Kf4 {[%emt 0:00:02]} b5 {[%emt 0:00:11]} 45. axb5 {[%emt 0:00:07]} axb5 {[%emt 0:00:03]} 46. Ke5 {[%emt 0:00:04]} b4 {[%emt 0:00:05]} 0-1

[Event "Moscow Youth U19 2019"]
[Site "Moscow"]
[Date "2019.11.26"]
[Round "9.8"]
[White "Talyzin, Valeriy"]
[Black "Budnichenko, Vladimir"]
[Result "0-1"]
[ECO "A05"]
[WhiteElo "1829"]
[BlackElo "1489"]
[Annotator "NA RC"]
[PlyCount "78"]
[EventDate "2019.11.18"]
[EventType "swiss"]
[EventCountry "RUS"]
[SourceTitle "playchess.com"]
[Source "ChessBase"]
[SourceQuality "1"]
[TimeControl "5400+30"]

{[%evp 34,78,-104,-121,-109,-168,32767,32767,32767,32767,32767,32767,-26,-66,32767,25,143,-142,0,0,32767,-461,-547,-689,-680,-802,-905,-819,32767,32767,32767,-1313,32767,32767,-1508,-1238,-1793,-1281,-2388,-2816,-29969,-29988,-1972,-29995,-29996,-29998,-1763]} 1. Nf3 {[%emt 0:00:00]} Nf6 {[%emt 0:00:00]} 2. g3 {[%emt 0:00:00]} g6 {[%emt 0:00:00]} 3. Bg2 {[%emt 0:00:00]} Bg7 {[%emt 0:00:00]} 4. O-O {[%emt 0:00:00]} O-O {[%emt 0:00:00]} 5. d3 {[%emt 0:00:00]} c5 {[%emt 0:00:00]} 6. e4 {[%emt 0:00:00]} d6 {[%emt 0:00:00]} 7. Nh4 {[%emt 0:00:04]} Nc6 {[%emt 0:00:00] A05: Réti Opening: 1 Nf3 Nf6} 8. f4 {[%emt 0:00:08]} Bg4 {[%emt 0:00:06]} (8... Nd7 9. f5 b5 10. Nc3 c4 11. Kh1 cxd3 12. cxd3 Bb7 13. Bg5 Nd4 14. a3 a5 15. Ne2 Nxe2 16. Qxe2 {1-0 (60) Petrosian,T (2601)-Onischuk,V (2637) Riadh 2017}) 9. Qd2 {[%emt 0:00:08]} h6 $146 {[%emt 0:00:21]} ({Predecessor:} 9... Bd7 10. Nc3 Rb8 11. h3 b5 12. Qf2 Nd4 13. Nd1 b4 14. Ne3 e6 15. a3 a5 16. axb4 axb4 17. g4 Ne8 18. f5 Bc6 {1-0 (46) McKay,R (2370)-Grant,A (2156) Helensburgh 2013}) 10. h3 {[%emt 0:00:05]} Bd7 {[%emt 0:00:11]} 11. f5 {[%emt 0:00:15]} g5 {[%emt 0:00:35]} 12. Nf3 {[%emt 0:00:05]} Qc7 {[%emt 0:05:30]} 13. g4 {[%emt 0:03:22]} e6 {[%emt 0:06:52]} 14. Re1 {[%emt 0:04:15]} exf5 {[%emt 0:03:42]} 15. gxf5 {[%emt 0:00:23]} Rfe8 {[%emt 0:02:07]} 16. Qf2 {[%emt 0:02:41]} d5 {[%emt 0:08:34]} 17. Nc3 {[%emt 0:00:56]} dxe4 {[%emt 0:03:59]} 18. dxe4 {[%emt 1:26:38] [#]} Nd4 $1 {[%emt 0:08:20]} 19. Be3 {[%emt 0:00:00]} (19. Nh2 $17 {might work better.}) 19... Nxf3+ {[%emt 0:04:38]} 20. Bxf3 {[%emt 0:00:00]} Rac8 {[%emt 0:01:11]} 21. Qg2 {[%emt 0:00:00]} Bc6 {[%emt 0:06:26]} 22. Bf2 {[%emt 0:00:00]} b6 {[%emt 0:02:34]} 23. h4 {[%emt 0:00:00]} (23. Bg3 $11 Qb7 24. Nd5) 23... gxh4 {[%emt 0:06:07]} 24. Bxh4 {[%emt 0:00:00]} Kh7 {[%emt 0:01:09] [#]} (24... Kh8 $14) 25. Re2 $2 {[%emt 0:00:00] [#]} (25. Bg3 $1 $16 {[%cal Rg3c7]} Qb7 26. Kh1) 25... Rg8 {[%emt 0:03:56]} (25... Nd7 $1 $17 26. Bg3 Be5 27. Bxe5 Nxe5) 26. Bg3 $1 {[%emt 0:00:00]} Qb7 {[%emt 0:01:14]} 27. Rae1 $2 {[%emt 0:00:00] [#]} (27. Qh3 $16) 27... Nd7 $1 {[%emt 0:02:43]} 28. Nd5 {[%emt 0:00:00]} Be5 {[%emt 0:01:15]} 29. Kf1 {[%emt 0:00:00]} Rxg3 {[%emt 0:01:58]} 30. Qh1 {[%emt 0:00:00]} Rcg8 {[%emt 0:04:16]} 31. c3 {[%emt 0:00:00]} Bb5 {[%emt 0:01:28]} 32. Qh5 {[%emt 0:00:00]} Bxe2+ {[%emt 0:00:19]} 33. Rxe2 {[%emt 0:00:00]} Nf6 {[%emt 0:03:00]} 34. Nxf6+ {[%emt 0:00:00]} Bxf6 {[%emt 0:00:04]} 35. Rh2 {[%emt 0:00:00]} Bg5 {[%emt 0:00:52]} 36. Kf2 {[%emt 0:00:00]} Qc7 {[%emt 0:01:51]} 37. f6 {[%emt 0:00:00] [#]} Rg6 $19 {[%emt 0:00:26]} (37... Qf4 $142 $1 38. Rg2 Bh4 39. Qf5+ Qxf5 40. exf5 Rxg2+ 41. Ke3 Re8+ 42. Kd3 Rg3 43. a4 Rxf3+ 44. Kc4 Bxf6 45. Kb5 h5 46. Kc6 h4 47. Kb5 h3 48. Ka6 h2 49. Kb5 h1=Q 50. a5 Qf1+ 51. c4 Rb3+ {[%mdl 64] Double Attack} 52. Kc6 Qxf5 53. axb6 Rxb6+ 54. Kc7 Be5#) 38. Bg4 {[%emt 0:00:00] [#]} Qf4+ $1 {[%emt 0:00:25] Double Attack} 39. Ke1 {[%emt 0:00:00]} Qxg4 {[%emt 0:00:22]} (39... Rg1+ $142 40. Ke2 Qf1#) 0-1